fUST/lending_fUST_20250820
["ID","MTS","AMOUNT","RATE_DAILY","PERIOD"]
[380301861,1755648639917,-480.0,0.00021126,2]
[380301863,1755648639926,-480.0,0.00021126,2]
[380301865,1755648639935,-480.0,0.00021126,2]
[380301867,1755648639944,-490.25,0.00021126,2]
[380301869,1755648639953,-480.0,0.00021126,2]
[380301871,1755648639962,-172.15071712,0.00021126,2]
[380301873,1755648639971,-480.0,0.00021126,2]
[380301875,1755648639981,-480.0,0.00021126,2]
[380301877,1755648639990,-385.56212575,0.00021126,2]
[380301879,1755648640000,-480.0,0.00021126,2]
[380301881,1755648640009,-480.0,0.00021126,2]
[380301883,1755648640019,-480.0,0.00021126,2]
[380301885,1755648640028,-480.0,0.00021126,2]
[380301887,1755648640037,-480.0,0.00021126,2]
[380301889,1755648640047,-480.0,0.00021126,2]
[380301891,1755648640056,-547.51782302,0.00021126,2]
[380301893,1755648640066,-480.0,0.00021126,2]
[380301895,1755648640077,-480.0,0.00021126,2]
[380301897,1755648640089,-480.0,0.00021126,2]
[380301899,1755648640098,-480.0,0.00021126,2]
[380301901,1755648640108,-480.0,0.00021126,2]
[380301903,1755648640117,-480.0,0.00021126,2]
[380301906,1755648640127,-991.84,0.00021126,2]
[380301908,1755648640137,-480.0,0.00021126,2]
[380301910,1755648640146,-480.0,0.00021126,2]
[380301912,1755648640156,-480.0,0.00021126,2]
[380301914,1755648640166,-480.0,0.00021126,2]
[380301916,1755648640175,-480.0,0.00021126,2]
[380301918,1755648640184,-480.0,0.00021126,2]
[380301920,1755648640193,-480.0,0.00021126,2]
[380301921,1755648640203,-480.0,0.00021126,2]
[380301923,1755648640212,-480.0,0.00021126,2]
[380301925,1755648640221,-267.29054172,0.00021164,2]
[380301927,1755648640231,-920.66009342,0.00021194,2]
[380301929,1755648640240,-151.0,0.000213,4]
[380301931,1755648640250,-500.0,0.00021303,2]
[380301933,1755648640259,-720.0,0.00021316,20]
[380301935,1755648640270,-480.0,0.00021333,2]
[380301937,1755648640282,-1000.0,0.00021357,2]
[380301940,1755648640292,-480.0,0.00021369,2]
[380301941,1755648640306,-480.0,0.00021369,2]
[380301943,1755648640325,-480.0,0.00021369,2]
[380301945,1755648640335,-480.0,0.000214,2]
[380301947,1755648640344,-480.0,0.000214,2]
[380301949,1755648640353,-480.0,0.000214,2]
[380301951,1755648640362,-480.0,0.000214,2]
[380301953,1755648640371,-480.0,0.000214,2]
[380301955,1755648640381,-422.48,0.000214,2]
[380301957,1755648640390,-245.55,0.000214,2]
[380301959,1755648640399,-480.0,0.000214,2]
[380301961,1755648640408,-480.0,0.000214,2]
[380301963,1755648640417,-486.74,0.000214,2]
[380301965,1755648640427,-991.84,0.000214,2]
[380301967,1755648640436,-303.0,0.000214,2]
[380301969,1755648640446,-480.0,0.000214,2]
[380301971,1755648640455,-436.97,0.000214,2]
[380301973,1755648640465,-480.0,0.000214,2]
[380301976,1755648640474,-500.0,0.00021417,2]
[380301977,1755648640484,-500.0,0.00021417,2]
[380301979,1755648640494,-500.0,0.00021417,2]
[380301981,1755648640503,-480.0,0.00021643,2]
[380301984,1755648640513,-480.0,0.00021643,2]
[380301985,1755648640522,-480.0,0.00021643,2]
[380301988,1755648640531,-460.0,0.00021644,2]
[380301989,1755648640540,-480.0,0.00021674,2]
[380301991,1755648640550,-187.42,0.00021674,2]
[380301993,1755648640559,-480.0,0.00021674,2]
[380301995,1755648640568,-480.0,0.00021674,2]
[380301997,1755648640577,-991.84,0.00021674,2]
[380301999,1755648640587,-480.0,0.00021674,2]
[380302001,1755648640596,-401.26364293,0.00021674,2]
[380302003,1755648640605,-1000.0,0.0002185,2]
[380302005,1755648640614,-175.707828,0.00021891,2]
[380302007,1755648640623,-151.0,0.000219,3]
[380302009,1755648640632,-1060.30109212,0.00021905,2]
[380302011,1755648640644,-618.57120719,0.00021917,2]
[380302013,1755648640654,-480.0,0.00021917,2]
[380302015,1755648640664,-480.0,0.00021917,2]
[380302017,1755648640676,-295.48,0.00021948,2]
[380302020,1755648640687,-480.0,0.00021948,2]
[380302021,1755648640696,-480.0,0.00021948,2]
[380302023,1755648640706,-991.84,0.00021948,2]
[380302025,1755648640716,-480.0,0.00021948,2]
[380302027,1755648640727,-501.93147384,0.00021965,2]
[380302029,1755648640736,-1000.0,0.00021965,2]
[380302032,1755648640746,-1000.0,0.00021965,2]
[380302033,1755648640755,-500.0,0.00021999,2]
[380302035,1755648640764,-214.51019116,0.00021999,2]
[380302037,1755648640772,-16366.68,0.00022,7]
[380302039,1755648640782,-2230.33,0.00022,7]
[380302041,1755648640792,-6628.98,0.00022,7]
[380302043,1755648640802,-172.0,0.00022,2]
[380302045,1755648640811,-208.58,0.000221,2]
[380302047,1755648640820,-480.0,0.00022191,2]
[380302049,1755648640830,-480.0,0.00022191,2]
[380302051,1755648640839,-560.0,0.00022192,2]
[380302053,1755648640847,-480.0,0.00022222,2]
[380302055,1755648640856,-480.0,0.00022222,2]
[380302057,1755648640866,-991.84,0.00022222,2]
[380302059,1755648640875,-480.0,0.00022222,2]
[380302061,1755648640884,-920.66009342,0.00022341,2]
[380302064,1755648640893,-480.0,0.00022465,2]
[380302066,1755648640902,-480.0,0.00022465,2]
[380302068,1755648640911,-480.0,0.00022496,2]
[380302070,1755648640920,-480.0,0.00022496,2]
[380302072,1755648640929,-991.84,0.00022496,2]
[380302074,1755648640939,-480.0,0.00022496,2]
[380302076,1755648640948,-151.0,0.000225,7]
[380302077,1755648640958,-1000.0,0.00022513,2]
[380302078,1755648640967,-1500.0,0.00022513,2]
[380302079,1755648640976,-587.0,0.00022573,2]
[380302080,1755648641104,-480.0,0.00022739,2]
[380302081,1755648641114,-480.0,0.00022739,2]
[380302082,1755648641123,-660.0,0.0002274,2]
[380302083,1755648641133,-480.0,0.0002277,2]
[380302084,1755648641143,-480.0,0.0002277,2]
[380302085,1755648641152,-991.84,0.0002277,2]
[380302086,1755648641163,-452.58,0.0002277,2]
[380302087,1755648641172,-183.0,0.00022827,2]
[380302088,1755648641181,-183.0,0.00022899,2]
[380302089,1755648641190,-183.0,0.00022903,2]
[380302090,1755648641198,-386.85521906,0.00022929,2]
[380302091,1755648641206,-160.0,0.00023,2]
[380302092,1755648641214,-276.68,0.00023013,2]
[380302093,1755648641222,-480.0,0.00023013,2]
[380302094,1755648641231,-172.0,0.00023014,7]
[380302095,1755648641240,-480.0,0.00023044,2]
[380302096,1755648641249,-444.22475374,0.00023044,2]
[380302097,1755648641259,-991.84,0.00023044,2]
[380302099,1755648641268,-2000.0,0.00023061,2]
[380302101,1755648641278,-151.0,0.000231,6]
[380302103,1755648641287,-171.99808932,0.00023192,2]
[380302105,1755648641297,-183.0,0.00023261,2]
[380302107,1755648641306,-183.0,0.00023274,2]
[380302109,1755648641316,-555.23901871,0.00023287,2]
[380302111,1755648641326,-760.0,0.00023288,2]
[380302113,1755648641335,-183.0,0.00023298,2]
[380302115,1755648641344,-183.0,0.00023302,2]
[380302117,1755648641353,-480.0,0.00023318,2]
[380302119,1755648641363,-991.84,0.00023318,2]
[380302121,1755648641372,-7826.8750733,0.00023413,2]
[380302123,1755648641382,-864.0,0.00023447,20]
[380302125,1755648641391,-151.0,0.00023465,2]
[380302127,1755648641400,-151.0,0.00023465,2]
[380302129,1755648641410,-151.0,0.00023465,2]
[380302131,1755648641419,-151.0,0.00023465,2]
[380302133,1755648641429,-151.0,0.00023465,2]
[380302135,1755648641438,-151.0,0.00023465,2]
[380302137,1755648641447,-151.0,0.00023465,2]
[380302139,1755648641457,-151.0,0.00023465,2]
[380302141,1755648641466,-151.0,0.00023465,2]
[380302143,1755648641475,-151.0,0.00023465,2]
[380302145,1755648641484,-151.0,0.00023465,2]
[380302147,1755648641493,-151.0,0.00023465,2]
[380302149,1755648641502,-151.0,0.00023465,2]
[380302151,1755648641511,-151.0,0.00023465,2]
[380302152,1755648641520,-151.0,0.00023465,2]
[380302154,1755648641530,-151.0,0.00023465,2]
[380302156,1755648641540,-151.0,0.00023465,2]
[380302158,1755648641550,-151.0,0.00023465,2]
[380302160,1755648641559,-151.0,0.00023465,2]
[380302162,1755648641568,-151.0,0.00023465,2]
[380302164,1755648641578,-151.0,0.00023465,2]
[380302166,1755648641588,-151.0,0.00023465,2]
[380302168,1755648641597,-151.0,0.00023465,2]
[380302170,1755648641606,-151.0,0.00023465,2]
[380302172,1755648641615,-151.0,0.00023465,2]
[380302174,1755648641623,-2183.31810187,0.00023465,2]
[380302176,1755648641631,-151.0,0.00023465,2]
[380302178,1755648641641,-151.0,0.00023465,2]
[380302180,1755648641650,-151.0,0.00023465,2]
[380302182,1755648641659,-151.0,0.00023465,2]
[380302184,1755648641669,-151.0,0.00023465,2]
[380302186,1755648641678,-17842.522448,0.00023465,2]
[380302188,1755648641687,-151.0,0.00023465,2]
[380302190,1755648641696,-151.0,0.00023465,2]
[380302192,1755648641705,-151.0,0.00023465,2]
[380302194,1755648641714,-151.0,0.00023465,2]
[380302196,1755648641724,-151.0,0.00023465,2]
[380302198,1755648641733,-151.0,0.00023465,2]
[380302200,1755648641743,-151.0,0.00023465,2]
[380302202,1755648641752,-151.0,0.00023465,2]
[380302204,1755648641761,-151.0,0.00023465,2]
[380302206,1755648641770,-151.0,0.00023465,2]
[380302208,1755648641781,-151.0,0.00023465,2]
[380302210,1755648641791,-151.0,0.00023465,2]
[380302213,1755648641800,-151.0,0.00023465,2]
[380302214,1755648641809,-151.0,0.00023465,2]
[380302216,1755648641819,-266.57837739,0.00023465,2]
[380302218,1755648641828,-151.0,0.00023465,2]
[380302220,1755648641837,-151.0,0.00023465,2]
[380302222,1755648641846,-151.0,0.00023465,2]
[380302224,1755648641855,-151.0,0.00023465,2]
[380302226,1755648641864,-151.0,0.00023465,2]
[380302228,1755648641873,-1000.0,0.00023465,2]
[380302230,1755648641882,-1000.0,0.00023465,2]
[380302232,1755648641891,-1000.0,0.00023465,2]
[380302234,1755648641900,-1000.0,0.00023465,2]
[380302236,1755648641909,-1000.0,0.00023465,2]
[380302238,1755648641918,-1000.0,0.00023465,2]
[380302240,1755648641927,-1000.0,0.00023465,2]
[380302242,1755648641936,-1000.0,0.00023465,2]
[380302244,1755648641946,-1000.0,0.00023465,2]
[380302246,1755648641954,-1000.0,0.00023465,2]
[380302248,1755648641963,-1000.0,0.00023465,2]
[380302250,1755648641972,-1000.0,0.00023465,2]
[380302252,1755648641981,-1000.0,0.00023465,2]
[380302254,1755648641990,-494.90769205,0.00023465,2]
[380302256,1755648641999,-920.66009342,0.00023487,2]
[380302258,1755648642008,-6628.98,0.000235,7]
[380302260,1755648642017,-168.0,0.00023509,2]
[380302262,1755648642027,-2264.10087163,0.0002352,2]
[380302264,1755648642037,-12500.0,0.00023534,7]
[380302266,1755648642046,-179.204772,0.00023534,7]
[380302268,1755648642056,-151.0,0.00023534,7]
[380302269,1755648642065,-173.883419,0.00023534,7]
[380302271,1755648642075,-185.497068,0.00023534,7]
[380302274,1755648642087,-185.497068,0.00023534,7]
[380302276,1755648642097,-185.497068,0.00023534,7]
[380302278,1755648642107,-185.497068,0.00023534,7]
[380302280,1755648642116,-151.0,0.00023534,7]
[380302282,1755648642126,-151.0,0.00023534,7]
[380302284,1755648642136,-151.0,0.00023534,7]
[380302286,1755648642145,-151.0,0.00023534,7]
[380302288,1755648642155,-151.0,0.00023534,7]
[380302289,1755648642165,-151.0,0.00023534,7]
[380302291,1755648642175,-168.0,0.00023557,2]
[380302293,1755648642184,-250.0,0.0002357,2]
[380302295,1755648642193,-168.0,0.00023574,2]
[380302297,1755648642203,-480.0,0.00023592,2]
[380302299,1755648642212,-991.84,0.00023592,2]
[380302301,1755648642221,-1830.45121552,0.00023608,2]
[380302303,1755648642231,-168.0,0.00023698,2]
[380302305,1755648642240,-16366.68,0.000237,7]
[380302307,1755648642250,-2230.33,0.000237,7]
[380302309,1755648642259,-151.0,0.000237,7]
[380302311,1755648642269,-151.0,0.000237,7]
[380302313,1755648642279,-153.9889,0.000237,7]
[380302315,1755648642290,-151.0,0.000237,6]
[380302317,1755648642300,-151.0,0.000237,7]
[380302319,1755648642309,-1609.29209431,0.00023706,2]
[380302321,1755648642318,-500.0,0.0002374,2]
[380302323,1755648642328,-500.0,0.0002374,2]
[380302325,1755648642338,-500.0,0.0002374,2]
[380302327,1755648642347,-500.0,0.0002374,2]
[380302329,1755648642356,-500.0,0.0002374,2]
[380302331,1755648642366,-160.92920943,0.00023748,2]
[380302333,1755648642376,-160.92920943,0.00023773,2]
[380302335,1755648642386,-1609.29209431,0.00023782,2]
[380302337,1755648642396,-1100.0,0.00023825,2]
[380302339,1755648642406,-860.0,0.00023836,2]
[380302341,1755648642415,-151.0,0.00023866,7]
[380302343,1755648642424,-151.0,0.00023866,7]
[380302345,1755648642434,-151.0,0.00023866,7]
[380302347,1755648642443,-151.0,0.00023866,7]
[380302349,1755648642452,-151.0,0.00023866,7]
[380302351,1755648642462,-480.0,0.00023866,2]
[380302353,1755648642471,-991.84,0.00023866,2]
[380302355,1755648642480,-1315.26877788,0.000239,2]
[380302357,1755648642490,-168.0,0.00023947,2]
[380302360,1755648642499,-382.0,0.00023976,2]
[380302362,1755648642508,-160.0,0.00024,7]
[380302364,1755648642518,-216.8835046,0.00024,7]
[380302366,1755648642526,-215.79176414,0.00024,3]
[380302368,1755648642536,-232.21311493,0.00024,7]
[380302369,1755648642546,-168.0,0.00024021,2]
[380302372,1755648642561,-151.0,0.000241,10]
[380302374,1755648642575,-480.0,0.0002414,2]
[380302376,1755648642591,-991.84,0.0002414,2]
[380302377,1755648642601,-480.0,0.00024183,2]
[380302379,1755648642610,-480.0,0.00024183,2]
[380302382,1755648642620,-972.0,0.00024214,2]
[380302384,1755648642629,-2153.0,0.00024214,2]
[380302386,1755648642638,-637.0,0.00024214,2]
[380302388,1755648642647,-382.0,0.00024241,2]
[380302390,1755648642656,-1000.0,0.00024288,2]
[380302392,1755648642665,-1000.0,0.00024288,2]
[380302394,1755648642674,-155.2,0.00024288,7]
[380302396,1755648642683,-965.67,0.00024288,7]
[380302398,1755648642692,-155.2,0.00024299,7]
[380302400,1755648642701,-151.0,0.000243,6]
[380302401,1755648642711,-1000.0,0.00024313,5]
[380302404,1755648642721,-960.0,0.00024384,2]
[380302406,1755648642730,-155.2,0.00024388,7]
[380302408,1755648642741,-965.67,0.00024388,7]
[380302410,1755648642750,-155.2,0.00024399,7]
[380302412,1755648642759,-151.0,0.000244,9]
[380302414,1755648642769,-480.0,0.00024414,2]
[380302415,1755648642778,-991.84,0.00024414,2]
[380302418,1755648642788,-155.339759,0.00024442,10]
[380302420,1755648642797,-480.0,0.00024456,2]
[380302422,1755648642807,-480.0,0.00024456,2]
[380302424,1755648642816,-155.339759,0.00024475,2]
[380302426,1755648642826,-155.2,0.00024488,7]
[380302428,1755648642834,-965.67,0.00024488,7]
[380302430,1755648642843,-155.2,0.00024499,7]
[380302432,1755648642851,-208.58,0.00024514,2]
[380302434,1755648642859,-306.0,0.00024575,2]
[380302436,1755648642868,-965.67,0.00024588,7]
[380302438,1755648642877,-823.0,0.00024604,2]
[380302440,1755648642887,-920.66009342,0.00024634,2]
[380302442,1755648642896,-965.67,0.00024688,7]
[380302444,1755648642906,-480.0,0.00024688,2]
[380302446,1755648642916,-991.84,0.00024688,2]
[380302447,1755648642926,-2068.1,0.000247,2]
[380302449,1755648642935,-151.0,0.000247,7]
[380302451,1755648642944,-480.0,0.0002473,2]
[380302453,1755648642953,-480.0,0.0002473,2]
[380302455,1755648642962,-150.0,0.00024773,2]
[380302458,1755648642972,-151.0,0.00024786,7]
[380302460,1755648642981,-151.0,0.00024786,7]
[380302462,1755648642990,-151.0,0.00024786,7]
[380302464,1755648642999,-151.0,0.00024786,7]
[380302466,1755648643008,-151.0,0.00024786,7]
[380302468,1755648643017,-151.0,0.00024786,7]
[380302470,1755648643026,-151.0,0.00024786,7]
[380302472,1755648643035,-151.0,0.00024786,7]
[380302474,1755648643045,-151.0,0.00024786,7]
[380302475,1755648643055,-151.0,0.00024786,7]
[380302477,1755648643064,-210.792876,0.00024786,7]
[380302479,1755648643073,-151.0,0.00024786,7]
[380302481,1755648643084,-965.67,0.00024788,7]
[380302483,1755648643094,-4283.73587951,0.00024789,2]
[380302485,1755648643103,-1526.5330792,0.00024789,2]
[380302487,1755648643113,-7094.00101434,0.00024789,2]
[380302489,1755648643123,-910.36129133,0.00024789,2]
[380302491,1755648643133,-3637.80372015,0.00024789,2]
[380302493,1755648643142,-2045.98253511,0.00024789,2]
[380302495,1755648643151,-226.75905908,0.00024799,2]
[380302497,1755648643162,-480.0,0.00024799,2]
[380302499,1755648643172,-480.0,0.00024799,2]
[380302501,1755648643181,-480.0,0.00024799,2]
[380302503,1755648643191,-480.0,0.00024799,2]
[380302505,1755648643201,-480.0,0.00024799,2]
[380302507,1755648643211,-496.03,0.00024799,2]
[380302509,1755648643220,-480.0,0.00024799,2]
[380302511,1755648643229,-480.0,0.00024799,2]
[380302514,1755648643238,-480.0,0.00024799,2]
[380302517,1755648643247,-480.0,0.00024799,2]
[380302520,1755648643256,-480.0,0.00024799,2]
[380302523,1755648643265,-480.0,0.00024799,2]
[380302526,1755648643275,-480.0,0.00024799,2]
[380302529,1755648643284,-480.0,0.00024799,2]
[380302532,1755648643294,-480.0,0.00024799,2]
[380302534,1755648643306,-480.0,0.00024799,2]
[380302536,1755648643315,-480.0,0.00024799,2]
[380302538,1755648643325,-480.0,0.00024799,2]
[380302540,1755648643335,-480.0,0.00024799,2]
[380302542,1755648643344,-480.0,0.00024799,2]
[380302544,1755648643354,-480.0,0.00024799,2]
[380302546,1755648643364,-577.1260339,0.00024799,2]
[380302548,1755648643373,-480.0,0.00024799,2]
[380302550,1755648643382,-598.46,0.00024799,2]
[380302552,1755648643391,-219.2097178,0.00024799,2]
[380302554,1755648643401,-480.0,0.00024799,2]
[380302556,1755648643410,-480.0,0.00024799,2]
[380302558,1755648643421,-240.23940201,0.00024799,2]
[380302560,1755648643430,-417.65297657,0.00024799,2]
[380302562,1755648643439,-480.0,0.00024799,2]
[380302564,1755648643448,-2799.90566291,0.000248,2]
[380302566,1755648643458,-35619.9,0.000248,2]
[380302568,1755648643467,-226.36618523,0.000248,7]
[380302569,1755648643476,-185.497068,0.000248,7]
[380302572,1755648643485,-185.497068,0.000248,7]
[380302574,1755648643497,-185.497068,0.000248,7]
[380302575,1755648643507,-185.497068,0.000248,7]
[380302577,1755648643516,-151.0,0.000248,7]
[380302579,1755648643525,-151.0,0.000248,7]
[380302582,1755648643534,-151.0,0.000248,7]
[380302583,1755648643543,-152.45789,0.000248,7]
[380302585,1755648643555,-151.0,0.000248,7]
[380302587,1755648643564,-151.0,0.000248,7]
[380302589,1755648643574,-151.0,0.000248,7]
[380302591,1755648643582,-151.0,0.000248,7]
[380302593,1755648643591,-151.0,0.000248,7]
[380302595,1755648643600,-151.0,0.000248,7]
[380302597,1755648643609,-151.0,0.000248,7]
[380302599,1755648643619,-263.533358,0.000248,7]
[380302601,1755648643628,-456.916408,0.000248,7]
[380302603,1755648643637,-456.916408,0.000248,7]
[380302605,1755648643646,-456.916408,0.000248,7]
[380302607,1755648643655,-456.916408,0.000248,7]
[380302609,1755648643664,-151.0,0.00024834,2]
[380302611,1755648643673,-18502.69577858,0.00024834,2]
[380302613,1755648643682,-500.0,0.00024836,2]
[380302615,1755648643691,-1500.0,0.00024836,2]
[380302617,1755648643701,-600.0,0.00024864,2]
[380302619,1755648643710,-965.67,0.00024888,7]
[380302621,1755648643719,-151.0,0.000249,7]
[380302623,1755648643729,-151.0,0.000249,7]
[380302625,1755648643738,-151.0,0.000249,7]
[380302627,1755648643747,-228.007216,0.000249,7]
[380302630,1755648643756,-151.0,0.000249,7]
[380302633,1755648643765,-151.0,0.000249,7]
[380302635,1755648643774,-151.0,0.000249,7]
[380302637,1755648643783,-151.0,0.000249,7]
[380302639,1755648643792,-151.0,0.000249,7]
[380302641,1755648643802,-151.0,0.000249,7]
[380302643,1755648643811,-151.0,0.000249,7]
[380302645,1755648643821,-151.0,0.000249,7]
[380302647,1755648643830,-151.0,0.000249,7]
[380302649,1755648643839,-151.0,0.000249,7]
[380302651,1755648643848,-151.0,0.000249,7]
[380302653,1755648643857,-151.0,0.000249,7]
[380302655,1755648643867,-179.334084,0.000249,7]
[380302657,1755648643876,-152.373275,0.000249,7]
[380302659,1755648643886,-151.0,0.000249,7]
[380302661,1755648643895,-151.0,0.000249,7]
[380302663,1755648643905,-151.0,0.000249,7]
[380302665,1755648643914,-6628.98,0.000249,7]
[380302667,1755648643923,-151.0,0.000249,7]
[380302669,1755648643933,-721446.964364,0.000249,2]
[380302682,1755648644042,-185.497068,0.000249,7]
[380302684,1755648644053,-185.497068,0.000249,7]
[380302686,1755648644063,-185.497068,0.000249,7]
[380302688,1755648644072,-185.497068,0.000249,7]
[380302690,1755648644085,-151.0,0.000249,2]
[380302692,1755648644095,-151.0,0.000249,7]
[380302694,1755648644106,-151.0,0.000249,7]
[380302696,1755648644115,-151.0,0.000249,7]
[380302698,1755648644125,-151.0,0.000249,7]
[380302700,1755648644135,-151.0,0.000249,7]
[380302702,1755648644144,-151.0,0.000249,7]
[380302704,1755648644154,-456.916408,0.000249,7]
[380302706,1755648644165,-456.916408,0.000249,7]
[380302708,1755648644174,-456.916408,0.000249,7]
[380302710,1755648644183,-456.916408,0.000249,7]
[380302712,1755648644193,-1100.0,0.00024921,2]
[380302714,1755648644202,-500.0,0.00024932,2]
[380302716,1755648644212,-151.0,0.00024932,2]
[380302718,1755648644222,-228.6204456,0.00024932,2]
[380302720,1755648644231,-824.0,0.00024932,2]
[380302722,1755648644241,-198.0,0.00024932,2]
[380302724,1755648644250,-1060.0,0.00024932,2]
[380302726,1755648644259,-151.0,0.00024932,2]
[380302728,1755648644269,-500.0,0.00024936,9]
[380302730,1755648644278,-480.0,0.00024962,2]
[380302732,1755648644287,-991.84,0.00024962,2]
[380302734,1755648644296,-500.0,0.00024973,2]
[380302736,1755648644306,-965.67,0.00024988,7]
[380302738,1755648644315,-480.0,0.00024999,2]
[380302740,1755648644325,-480.0,0.00024999,2]
[380302742,1755648644334,-480.0,0.00024999,2]
[380302744,1755648644343,-480.0,0.00024999,2]
[380302746,1755648644353,-480.0,0.00024999,2]
[380302749,1755648644363,-480.0,0.00024999,2]
[380302750,1755648644372,-480.0,0.00024999,2]
[380302753,1755648644381,-1186.1,0.00024999,2]
[380302755,1755648644391,-480.0,0.00024999,2]
[380302757,1755648644400,-29690.53798499,0.00025,2]
[380302759,1755648644409,-12685.85563623,0.00025,7]
[380302761,1755648644418,-286.61748694,0.00025,2]
[380302763,1755648644428,-151.0,0.00025,2]
[380302765,1755648644437,-151.0,0.00025,7]
[380302767,1755648644446,-203.882797,0.00025,2]
[380302769,1755648644456,-163.33011413,0.00025,2]
[380302771,1755648644465,-178.92,0.00025004,2]
[380302773,1755648644474,-458.35808522,0.00025004,2]
[380302775,1755648644483,-411.18116709,0.00025046,2]
[380302777,1755648644492,-207.0,0.0002506,2]
[380302779,1755648644501,-24044.77690461,0.00025069,3]
[380302781,1755648644511,-160.0,0.0002507,3]
[380302783,1755648644520,-160.0,0.0002507,3]
[380302785,1755648644530,-480.0,0.00025073,2]
[380302787,1755648644539,-480.0,0.00025073,2]
[380302789,1755648644549,-180.66,0.00025073,2]
[380302791,1755648644560,-480.0,0.00025073,2]
[380302793,1755648644569,-234.85,0.00025073,2]
[380302795,1755648644579,-480.0,0.00025073,2]
[380302797,1755648644588,-480.0,0.00025073,2]
[380302799,1755648644598,-462.15,0.00025073,2]
[380302801,1755648644607,-348.89,0.00025073,2]
[380302803,1755648644618,-193.66,0.00025073,2]
[380302805,1755648644627,-562.33,0.00025073,2]
[380302807,1755648644637,-480.0,0.00025073,2]
[380302809,1755648644646,-480.0,0.00025073,2]
[380302811,1755648644655,-486.46,0.00025073,2]
[380302813,1755648644665,-480.0,0.00025073,2]
[380302815,1755648644674,-480.0,0.00025073,2]
[380302817,1755648644683,-965.67,0.00025088,7]
[380302819,1755648644693,-16366.68,0.000251,7]
[380302821,1755648644702,-2230.33,0.000251,7]
[380302823,1755648644712,-375.88899365,0.000251,3]
[380302825,1755648644721,-216.8835046,0.000251,3]
[380302827,1755648644731,-215.79176414,0.000251,3]
[380302829,1755648644740,-528.6845513,0.000251,3]
[380302831,1755648644750,-232.21311493,0.000251,3]
[380302833,1755648644760,-417.15472785,0.000251,3]
[380302835,1755648644770,-659.7930276,0.00025123,2]
[380302837,1755648644779,-600.0,0.00025123,2]
[380302839,1755648644788,-864.3069494,0.00025123,2]
[380302841,1755648644798,-238.749711,0.00025169,7]
[380302843,1755648644808,-151.0,0.00025169,7]
[380302845,1755648644818,-151.0,0.00025169,7]
[380302847,1755648644828,-151.0,0.00025169,7]
[380302849,1755648644838,-151.0,0.00025169,7]
[380302851,1755648644847,-151.0,0.00025169,7]
[380302853,1755648644857,-500.0,0.00025173,2]
[380302855,1755648644867,-965.67,0.00025188,7]
[380302857,1755648644876,-645.0,0.000252,2]